Workbook

Sheet Factor Data (hidden)
A1: Entry Count | B1: 6
A2: Next Available ID | B2: 7
A4: ID | B4: 1
A5: IsActive | B5: TRUE
A6: NodeID | B6: 1 | C6: 2 | D6: 3
A7: ArcID | B7: 1 | C7: 2
A8: fNodeCopyID
A9: RootNodeID | B9: 1
A10: FactorName | B10: Therapy
A11: IsHidden | B11: FALSE
A13: ID | B13: 2
A14: IsActive | B14: TRUE
A15: NodeID | B15: 4 | C15: 5
A16: ArcID | B16: 11
A17: fNodeCopyID
A18: RootNodeID | B18: 4
A19: FactorName | B19: Kidney
A20: IsHidden | B20: FALSE
A22: ID | B22: 3
A23: IsActive | B23: TRUE
A24: NodeID | B24: 6 | C24: 7
A25: ArcID | B25: 4
A26: fNodeCopyID
A27: RootNodeID | B27: 6
A28: FactorName | B28: Cancer
A29: IsHidden | B29: FALSE
A31: ID | B31: 4
A32: IsActive | B32: TRUE
A33: NodeID | B33: 8
A34: ArcID | B34: 5
A35: fNodeCopyID
A36: RootNodeID | B36: 8
A37: FactorName | B37: MortDial
A38: IsHidden | B38: FALSE
A40: ID | B40: 5
A41: IsActive | B41: TRUE
A42: NodeID | B42: 9
A43: ArcID | B43: 6
A44: fNodeCopyID
A45: RootNodeID | B45: 9
A46: FactorName | B46: MortMel
A47: IsHidden | B47: FALSE
A49: ID | B49: 6
A50: IsActive | B50: TRUE
A51: NodeID | B51: 10
A52: ArcID | B52: 7
A53: fNodeCopyID
A54: RootNodeID | B54: 10
A55: FactorName | B55: MortBkd
A56: IsHidden | B56: FALSE

Sheet Node Data (hidden)
A1: Entry Count | B1: 10
A2: Next Available ID | B2: 11
A4: ID | B4: 1
A5: nParentFactorID | B5: 1
A6: NodeCopyID
A7: PredecessorArcID
A8: SuccessorArcID | B8: 2 | C8: 1
A9: QualityFactor | B9: 1
A10: CostFactor | B10: 0
A11: IsKeyNode | B11: FALSE
A12: NodeName | B12: 0
A13: Rounded | B13: FALSE
A14: nTriggerID
A16: ID | B16: 2
A17: nParentFactorID | B17: 1
A18: NodeCopyID
A19: PredecessorArcID | B19: 1
A20: SuccessorArcID
A21: QualityFactor | B21: 1
A22: CostFactor | B22: 0
A23: IsKeyNode | B23: FALSE
A24: NodeName | B24: No Immunosuppress
A25: Rounded | B25: TRUE
A26: nTriggerID
A28: ID | B28: 3
A29: nParentFactorID | B29: 1
A30: NodeCopyID
A31: PredecessorArcID | B31: 2
A32: SuccessorArcID
A33: QualityFactor | B33: 1
A34: CostFactor | B34: 0
A35: IsKeyNode | B35: FALSE
A36: NodeName | B36: Immunosuppress
A37: Rounded | B37: TRUE
A38: nTriggerID
A40: ID | B40: 4
A41: nParentFactorID | B41: 2
A42: NodeCopyID
A43: PredecessorArcID
A44: SuccessorArcID | B44: 11
A45: QualityFactor | B45: 1
A46: CostFactor | B46: 0
A47: IsKeyNode | B47: FALSE
A48: NodeName | B48: Well
A49: Rounded | B49: TRUE
A50: nTriggerID
A52: ID | B52: 5
A53: nParentFactorID | B53: 2
A54: NodeCopyID
A55: PredecessorArcID | B55: 11
A56: SuccessorArcID
A57: QualityFactor | B57: qDial
A58: CostFactor | B58: 0
A59: IsKeyNode | B59: FALSE
A60: NodeName | B60: Dialysis
A61: Rounded | B61: TRUE
A62: nTriggerID
A64: ID | B64: 6
A65: nParentFactorID | B65: 3
A66: NodeCopyID
A67: PredecessorArcID
A68: SuccessorArcID | B68: 4
A69: QualityFactor | B69: 1
A70: CostFactor | B70: 0
A71: IsKeyNode | B71: FALSE
A72: NodeName | B72: Remission
A73: Rounded | B73: TRUE
A74: nTriggerID
A76: ID | B76: 7
A77: nParentFactorID | B77: 3
A78: NodeCopyID
A79: PredecessorArcID | B79: 4
A80: SuccessorArcID
A81: QualityFactor | B81: 1
A82: CostFactor | B82: 0
A83: IsKeyNode | B83: FALSE
A84: NodeName | B84: Melanoma
A85: Rounded | B85: TRUE
A86: nTriggerID
A88: ID | B88: 8
A89: nParentFactorID | B89: 4
A90: NodeCopyID
A91: PredecessorArcID
A92: SuccessorArcID | B92: 5
A93: QualityFactor | B93: 1
A94: CostFactor | B94: 0
A95: IsKeyNode | B95: FALSE
A96: NodeName | B96: Alive
A97: Rounded | B97: TRUE
A98: nTriggerID
A100: ID | B100: 9
A101: nParentFactorID | B101: 5
A102: NodeCopyID
A103: PredecessorArcID
A104: SuccessorArcID | B104: 6
A105: QualityFactor | B105: 1
A106: CostFactor | B106: 0
A107: IsKeyNode | B107: FALSE
A108: NodeName | B108: Alive
A109: Rounded | B109: TRUE
A110: nTriggerID
A112: ID | B112: 10
A113: nParentFactorID | B113: 6
A114: NodeCopyID
A115: PredecessorArcID
A116: SuccessorArcID | B116: 7
A117: QualityFactor | B117: 1
A118: CostFactor | B118: 0
A119: IsKeyNode | B119: FALSE
A120: NodeName | B120: Alive
A121: Rounded | B121: TRUE
A122: nTriggerID

Sheet Arc Data (hidden)
A1: Entry Count | B1: 7
A2: Next Available ID | B2: 12
A4: ID | B4: 1
A5: aParentFactorID | B5: 1
A6: Stochastic | B6: FALSE
A7: Orientation | B7: 3.141592741
A8: PredecessorNodeID | B8: 1
A9: SuccessorNodeID | B9: 2
A10: SuccessorNodeCopyID | B10: 0
A11: TriggerID | B11: 1
A12: RateProb | B12: Stop
A13: QualityToll | B13: 0
A14: CostToll | B14: 0
A16: ID | B16: 2
A17: aParentFactorID | B17: 1
A18: Stochastic | B18: FALSE
A19: Orientation | B19: 3.141592741
A20: PredecessorNodeID | B20: 1
A21: SuccessorNodeID | B21: 3
A22: SuccessorNodeCopyID | B22: 0
A23: TriggerID
A24: RateProb | B24: 1-Stop
A25: QualityToll | B25: 0
A26: CostToll | B26: 0
A28: ID | B28: 4
A29: aParentFactorID | B29: 3
A30: Stochastic | B30: TRUE
A31: Orientation | B31: 3.141592741
A32: PredecessorNodeID | B32: 6
A33: SuccessorNodeID | B33: 7
A34: SuccessorNodeCopyID | B34: 0
A35: TriggerID
A36: RateProb | B36: ID 4
A37: QualityToll | B37: 0
A38: CostToll | B38: 0
A40: ID | B40: 5
A41: aParentFactorID | B41: 4
A42: Stochastic | B42: TRUE
A43: Orientation | B43: -1.570796371
A44: PredecessorNodeID | B44: 8
A45: SuccessorNodeID | B45: 0
A46: SuccessorNodeCopyID | B46: 0
A47: TriggerID
A48: RateProb | B48: ID 2
A49: QualityToll | B49: 0
A50: CostToll | B50: 0
A52: ID | B52: 6
A53: aParentFactorID | B53: 5
A54: Stochastic | B54: TRUE
A55: Orientation | B55: -1.570796371
A56: PredecessorNodeID | B56: 9
A57: SuccessorNodeID | B57: 0
A58: SuccessorNodeCopyID | B58: 0
A59: TriggerID
A60: RateProb | B60: ID 3
A61: QualityToll | B61: 0
A62: CostToll | B62: 0
A64: ID | B64: 7
A65: aParentFactorID | B65: 6
A66: Stochastic | B66: TRUE
A67: Orientation | B67: -1.570796371
A68: PredecessorNodeID | B68: 10
A69: SuccessorNodeID | B69: 0
A70: SuccessorNodeCopyID | B70: 0
A71: TriggerID
A72: RateProb | B72: rMortUS(_t+InitAge,Gender)
A73: QualityToll | B73: 0
A74: CostToll | B74: 0
A76: ID | B76: 11
A77: aParentFactorID | B77: 2
A78: Stochastic | B78: TRUE
A79: Orientation | B79: 3.141592741
A80: PredecessorNodeID | B80: 4
A81: SuccessorNodeID | B81: 5
A82: SuccessorNodeCopyID | B82: 0
A83: TriggerID | B83: 4
A84: RateProb | B84: rReject
A85: QualityToll | B85: 0
A86: CostToll | B86: 0

Sheet NodeCopy Data (hidden)
A1: Entry Count | B1: 0
A2: Next Available ID | B2: 1

Sheet Dependency Data (hidden)
A1: Entry Count | B1: 3
A2: Next Available ID | B2: 5
A4: ID | B4: 2
A5: IfFactorID | B5: 2
A6: StateID | B6: 5 | C6: (other)
A7: ThenD | B7: mxBase+mxDial | C7: mxBase
A9: ID | B9: 3
A10: IfFactorID | B10: 3
A11: StateID | B11: 7 | C11: (other)
A12: ThenD | B12: mxMel | C12: 0
A14: ID | B14: 4
A15: IfFactorID | B15: 1
A16: StateID | B16: 3 | C16: 2
A17: ThenD | B17: rRecur Immuno | C17: rRecur No_Immuno

Sheet Trigger Data (hidden)
A1: Entry Count | B1: 2
A2: Next Available ID | B2: 5
A4: ID | B4: 1
A5: FactorTriggeredID | B5: 2
A6: OriginNodeID | B6: 4
A7: DestinationNodeID | B7: 5
A9: ID | B9: 4
A10: FactorTriggeredID | B10: 1
A11: OriginNodeID | B11: (any node)
A12: DestinationNodeID | B12: 2

Sheet _Lookup (hidden)
A1: Next Available Dive Index | B1: 6
A2: Begin Table | B2: 5
A3: End Table | B3: 11
A5: Lexicographic Node Index | B5: Dive Index
A6: 1 | B6: 1
A7: 7 | B7: 3
A8: 8 | B8: 4
A9: 9 | B9: 2
A10: 10 | B10: 5

Sheet _Cohort
A2: Cycle Time = | B2: 0.1
A3: Start Time = | B3: 0
A4: Time Horizon = | B4: 20
A5: Discount Rate = | B5: =_DiscountRate -> 0
D6: Therapy: | E6: 0 | F6: No Immunosuppress | G6: No Immunosuppress | H6: Immunosuppress | I6: Immunosuppress | J6: Terminal Node
D7: Kidney: | E7: Well | F7: Dialysis | G7: Dialysis | H7: Well | I7: Well
D8: Cancer: | E8: Remission | F8: Remission | G8: Melanoma | H8: Remission | I8: Melanoma
D9: MortDial: | E9: Alive | F9: Alive | G9: Alive | H9: Alive | I9: Alive
D10: MortMel: | E10: Alive | F10: Alive | G10: Alive | H10: Alive | I10: Alive
D11: MortBkd: | E11: Alive | F11: Alive | G11: Alive | H11: Alive | I11: Alive
D12: Chance/Decision? | E12: 1 | F12: 0 | G12: 0 | H12: 0 | I12: 0
D14: Initial Cohort = | E14: 1
D16: Time | E16: Counts
D17: =IF(_R,_tI,IF(_t>_tF,_tNw,D26)) -> 1.9 | E17: =IF(_R,E14,IF(_tNw>=_tF,E17,E26)) -> 0 | F17: 0.03666960007 | G17: 0.01447090308 | H17: 0.4255588711 | I17: 0.3775082256 | J17: 0.1457924001 | K17: =(SUMPRODUCT(E12:K12,E17:K17) > 0) -> FALSE
C18: Transition Counts: | D18: 0 / Well / Remission / Alive / Alive / Alive
D19: No Immunosuppress / Dialysis / Remission / Alive / Alive / Alive | E19: =Stop -> 0 | H19: =[1]!xPr(rReject*_dT) -> 0.003337268435
D20: No Immunosuppress / Dialysis / Melanoma / Alive / Alive / Alive | F20: =[1]!xPr(rRecur No_Immuno*_dT) -> 0.005806622662 | I20: =[1]!xPr(rReject*_dT) -> 0.003337268435
D21: Immunosuppress / Well / Remission / Alive / Alive / Alive | E21: =(1-Stop) -> 1
D22: Immunosuppress / Well / Melanoma / Alive / Alive / Alive | H22: =[1]!xPr(rRecur Immuno*_dT) -> 0.03497025848
D23: Terminal Node | F23: =[1]!xPr(((mxBase+mxDial)+[1]!rMortUS(_t+InitAge,Gender))*_dT) -> 0.01122391839 | G23: =[1]!xPr(((mxBase+mxDial)+mxMel+[1]!rMortUS(_t+InitAge,Gender))*_dT) -> 0.02096450613 | H23: =[1]!xPr((mxBase+[1]!rMortUS(_t+InitAge,Gender))*_dT) -> 0.00567123934 | I23: =[1]!xPr((mxBase+mxMel+[1]!rMortUS(_t+InitAge,Gender))*_dT) -> 0.01546652739
D24: Entering Counts | E24: =SUMPRODUCT(_tR,E18:J18) -> 0 | F24: =SUMPRODUCT(_tR,E19:J19) -> 0.001420204188 | G24: =SUMPRODUCT(_tR,E20:J20) -> 0.001472772816 | H24: =SUMPRODUCT(_tR,E21:J21) -> 0 | I24: =SUMPRODUCT(_tR,E22:J22) -> 0.01488190372 | J24: =SUMPRODUCT(_tR,E23:J23) -> 0.008967139459
D25: Departing Counts | E25: =IF(_CD=1,E17,E17*SUM(E18:E23)) -> 0 | F25: 0.0006245031294 | G25: 0.0003033753363 | H25: 0.01871555412 | I25: 0.007098587597 | J25: 0
D26: =IF(_CP,D17,D17+_dT) -> 2 | E26: =E17+E24-E25 -> 0 | F26: 0.03746530113 | G26: 0.01564030056 | H26: 0.406843317 | I26: 0.3852915417 | J26: 0.1547595396
D28: Quality Coefficients (at t): | F28: =qDial -> 0.7 | G28: =qDial -> 0.7 | H28: =1 -> 1 | I28: =1 -> 1
D29: (at t+dt): | F29: =qDial*EXP(-_dR*_dT) -> 0.7 | G29: =qDial*EXP(-_dR*_dT) -> 0.7 | H29: =EXP(-_dR*_dT) -> 1 | I29: =EXP(-_dR*_dT) -> 1
C31: Transition QALY Tolls: | D31: Immunosuppress / Well / Remission / Alive / Alive / Alive | E31: =0 -> 0
D32: No Immunosuppress / Dialysis / Remission / Alive / Alive / Alive | E32: =0 -> 0 | H32: =0 -> 0
D33: No Immunosuppress / Dialysis / Melanoma / Alive / Alive / Alive | F33: =0 -> 0 | I33: =0 -> 0
D34: Immunosuppress / Well / Melanoma / Alive / Alive / Alive | H34: =0 -> 0
D35: Terminal Node | F35: =0 -> 0 | G35: =0 -> 0 | H35: =0 -> 0 | I35: =0 -> 0
D36: Incremental QALY Tolls: | E36: =IF(_t>_tF,0,_tR*SUM(E31:E35)) -> 0 | F36: =IF(_t>_tF,0,_tR*SUM(F31:F35)) -> 0 | G36: =IF(_t>_tF,0,_tR*SUM(G31:G35)) -> 0 | H36: =IF(_t>_tF,0,_tR*SUM(H31:H35)) -> 0 | I36: =IF(_t>_tF,0,_tR*SUM(I31:I35)) -> 0
D37: Incremental QALYs: | E37: =IF(_t>_tF,0,IF(_CP,0,_dT/2*(E28*E17+E29*E26))) -> 0 | F37: =IF(_t>_tF,0,IF(_CP,0,_dT/2*(F28*F17+F29*F26))) -> 0.002594721542 | G37: =IF(_t>_tF,0,IF(_CP,0,_dT/2*(G28*G17+G29*G26))) -> 0.001053892127 | H37: =IF(_t>_tF,0,IF(_CP,0,_dT/2*(H28*H17+H29*H26))) -> 0.04162010941 | I37: =IF(_t>_tF,0,IF(_CP,0,_dT/2*(I28*I17+I29*I26))) -> 0.03813998837
D38: Incremental Total: | E38: =E37-E36 -> 0 | F38: =F37-F36 -> 0.002594721542 | G38: =G37-G36 -> 0.001053892127 | H38: =H37-H36 -> 0.04162010941 | I38: =I37-I36 -> 0.03813998837
D39: Cum Discounted QALYs: | E39: =IF(_R,E38,IF(_t>=_tF,E39,E39+E38*EXP(-_dR*_t))) -> 0 | F39: =IF(_R,F38,IF(_t>=_tF,F39,F39+F38*EXP(-_dR*_t))) -> 0.03237760875 | G39: =IF(_R,G38,IF(_t>=_tF,G39,G39+G38*EXP(-_dR*_t))) -> 0.008187774422 | H39: =IF(_R,H38,IF(_t>=_tF,H39,H39+H38*EXP(-_dR*_t))) -> 1.319391485 | I39: =IF(_R,I38,IF(_t>=_tF,I39,I39+I38*EXP(-_dR*_t))) -> 0.4792604198
D40: Overall Cum QALYs = | E40: =SUM(E39:I39) -> 1.839217288
D42: Cost Coefficients (at t): | F42: =0 -> 0 | G42: =0 -> 0 | H42: =0 -> 0 | I42: =0 -> 0
D43: (at t+dt): | F43: =0 -> 0 | G43: =0 -> 0 | H43: =0 -> 0 | I43: =0 -> 0
C45: Transition Cost Tolls: | D45: Immunosuppress / Well / Remission / Alive / Alive / Alive
D46: No Immunosuppress / Dialysis / Remission / Alive / Alive / Alive
D47: No Immunosuppress / Dialysis / Melanoma / Alive / Alive / Alive
D48: Immunosuppress / Well / Melanoma / Alive / Alive / Alive
D49: Terminal Node
D50: Incremental Cost Tolls:
D51: Incremental Costs:
D52: Incremental Total:
D53: Cum Discounted Costs:
D54: Overall Cum Costs =

Sheet Therapy
D3: Stop = | E3: 0 | F3: 1 if stop immunosuppression initially; 0 if continue

Sheet Kidney
E2: rReject = | F2: =1-EXP(-Q2) -> 0.03342849536 | G2: ="/yr" -> /yr | H2: Rate of kidney rejection under immunosupression | P2: pReject = | Q2: 0.034 | R2: ="/yr" -> /yr | S2: From Beck and Sonnenberg
E3: qDial = | F3: 0.7 | H3: Quality of life under dialysis

Sheet Cancer
E1: Immuno | F1: No Immuno | M1: From Beck and Sonnenberg:
D2: rRecur: | E2: =1-EXP(-O2) -> 0.3559635789 | F2: =1-EXP(-O3) -> 0.05823546642 | N2: pRecur = | O2: 0.44 | P2: ="/yr" -> /yr | Q2: under immunosupression
O3: 0.06 | P3: ="/yr" -> /yr | Q3: without immunosuppression

Sheet MortDial
D2: mxBase = | E2: 0.054 | F2: ="/yr" -> /yr | G2: Excess mortality due to transplant and prior melanoma
D3: mxDial = | E3: 0.056 | F3: ="/yr" -> /yr | G3: Excess mortality due to dialysis

Sheet MortMel
D2: mxMel = | E2: 0.099 | F2: ="/yr" -> /yr | G2: Excess mortality due to melanoma

Sheet MortBkd
D2: InitAge = | E2: 42
D3: Gender = | E3: Male

Sheet Sheet0

Sheet Sheet1

Sheet Sheet2
